bitfinex/quotes_BTCUSD_20221001
["timestamp","ask_amount","ask_price","bid_price","bid_amount"]
[1664622132919,0.34516597,19341.0,19340.0,1.44101345]
[1664622133394,0.26616597,19341.0,19340.0,0.98727161]
[1664622133625,0.39542497,19341.0,19340.0,1.03727161]
[1664622133845,0.26616597,19341.0,19340.0,0.67907661]
[1664622134309,0.34516597,19341.0,19340.0,1.03727161]
[1664622134530,0.34516597,19341.0,19340.0,0.98727161]
[1664622134754,0.47442497,19341.0,19340.0,0.98727161]
[1664622135695,0.39542497,19341.0,19340.0,0.62907661]
[1664622135924,0.39542497,19341.0,19340.0,0.98727161]
[1664622136148,0.39542497,19341.0,19340.0,0.62907661]
[1664622136362,0.47442497,19341.0,19340.0,0.62907661]
[1664622136720,0.47442497,19341.0,19340.0,0.8846951]
[1664622138046,0.39542497,19341.0,19340.0,0.8846951]
[1664622138285,0.47442497,19341.0,19340.0,0.5265001]
[1664622138951,0.47442497,19341.0,19340.0,0.8846951]
[1664622139196,0.47442497,19341.0,19340.0,0.5265001]
[1664622139408,0.39542497,19341.0,19340.0,0.5265001]
[1664622139645,0.39542497,19341.0,19340.0,0.8846951]
[1664622140005,0.39542497,19341.0,19340.0,0.5265001]
[1664622140217,0.47442497,19341.0,19340.0,0.5265001]
[1664622141522,0.39542497,19341.0,19340.0,0.5265001]
[1664622142201,0.47442497,19341.0,19340.0,0.5265001]
[1664622142408,0.47442497,19341.0,19340.0,0.8846951]
[1664622143614,0.39542497,19341.0,19340.0,1.0634653]
[1664622143826,0.13690697,19341.0,19340.0,1.51720714]
[1664622144025,0.00764797,19341.0,19340.0,1.51720714]
[1664622144243,0.08664797,19341.0,19340.0,1.51720714]
[1664622145674,0.08664797,19341.0,19340.0,1.56720714]
[1664622145942,0.00764797,19341.0,19340.0,1.51720714]
[1664622146149,0.06764797,19341.0,19340.0,1.56720714]
[1664622147495,0.00764797,19341.0,19340.0,1.51720714]
[1664622148173,0.06764797,19341.0,19340.0,1.51720714]
[1664622148463,0.06764797,19341.0,19340.0,1.1134653]
[1664622149564,0.06764797,19341.0,19340.0,1.1634653]
[1664622149998,0.00764797,19341.0,19340.0,1.1634653]
[1664622150213,0.06764797,19341.0,19340.0,1.56720714]
[1664622151533,0.00764797,19341.0,19340.0,1.56720714]
[1664622152199,0.06764797,19341.0,19340.0,1.56720714]
[1664622153660,0.00764797,19341.0,19340.0,1.56720714]
[1664622153884,0.00764797,19341.0,19340.0,1.1634653]
[1664622154117,0.00764797,19341.0,19340.0,0.5265001]
[1664622154347,0.19690697,19341.0,19340.0,0.5265001]
[1664622154597,0.19690697,19341.0,19340.0,0.5765001]
[1664622154817,0.06764797,19341.0,19340.0,0.9346951]
[1664622155038,0.06764797,19341.0,19340.0,0.9846951]
[1664622155259,0.06764797,19341.0,19340.0,0.6265001]
[1664622155475,0.00764797,19341.0,19340.0,0.80075308]
[1664622155703,0.00764797,19341.0,19340.0,1.15449492]
[1664622156007,0.00764797,19341.0,19340.0,1.15894808]
[1664622156228,0.06764797,19341.0,19340.0,1.15894808]
[1664622157007,0.06764797,19341.0,19340.0,0.80075308]
[1664622157463,0.00764797,19341.0,19340.0,0.80075308]
[1664622158133,0.00764797,19341.0,19340.0,1.15894808]
[1664622158348,0.06764797,19341.0,19340.0,1.15894808]
[1664622158616,0.06764797,19341.0,19340.0,0.80075308]
[1664622159028,0.06764797,19341.0,19340.0,0.75075308]
[1664622159438,0.00764797,19341.0,19340.0,0.75075308]
[1664622159654,0.00764797,19341.0,19340.0,1.10894808]
[1664622159896,0.00764797,19341.0,19340.0,0.75075308]
[1664622160081,0.00764797,19341.0,19340.0,1.10894808]
[1664622160292,0.06764797,19341.0,19340.0,1.10894808]
[1664622160473,0.06764797,19341.0,19340.0,0.93458485]
[1664622161529,0.00764797,19341.0,19340.0,0.93458485]
[1664622162310,0.06764797,19341.0,19340.0,0.93458485]
[1664622163624,0.13690697,19341.0,19340.0,0.8846951]
[1664622164235,0.19690697,19341.0,19340.0,0.8846951]
[1664622164452,0.19690697,19341.0,19340.0,0.5265001]
[1664622164714,0.06764797,19341.0,19340.0,0.5765001]
[1664622164960,0.06764797,19341.0,19340.0,0.9346951]
[1664622165179,0.19690697,19341.0,19340.0,0.8846951]
[1664622165827,0.19690697,19341.0,19340.0,0.9346951]
[1664622166065,0.00764797,19341.0,19340.0,0.8846951]
[1664622166351,0.06764797,19341.0,19340.0,0.8846951]
[1664622167120,0.19690697,19341.0,19340.0,0.8846951]
[1664622167559,0.13690697,19341.0,19340.0,0.9346951]
[1664622167771,0.00764797,19341.0,19340.0,0.9346951]
[1664622167986,0.00764797,19341.0,19340.0,0.8846951]
[1664622168250,0.19690697,19341.0,19340.0,0.8846951]
[1664622169092,0.06764797,19341.0,19340.0,0.6265001]
[1664622169549,0.06764797,19341.0,19340.0,0.5765001]
[1664622169550,0.00764797,19341.0,19340.0,0.5765001]
[1664622169760,0.00764797,19341.0,19340.0,0.9346951]
[1664622169972,0.00764797,19341.0,19340.0,0.8846951]
[1664622170378,0.06764797,19341.0,19340.0,0.8846951]
[1664622170554,0.06764797,19341.0,19340.0,0.9346951]
[1664622171490,0.06764797,19341.0,19340.0,0.8846951]
[1664622171896,0.39542497,19341.0,19340.0,0.8846951]
[1664622172640,0.45542497,19341.0,19340.0,0.8846951]
[1664622172874,0.45542497,19341.0,19340.0,1.45268992]
[1664622173104,0.45542497,19341.0,19340.0,1.14894808]
[1664622173551,0.06764797,19341.0,19340.0,0.9346951]
[1664622173552,0.00764797,19341.0,19340.0,0.9346951]
[1664622173769,0.98406012,19342.0,19340.0,0.9346951]
[1664622174038,0.98406012,19342.0,19341.0,0.86992644]
[1664622174261,1.04407212,19342.0,19341.0,0.51173144]
[1664622174629,1.04407212,19342.0,19341.0,0.5265001]
[1664622175586,1.04407212,19342.0,19341.0,0.8846951]
[1664622175587,0.98407212,19342.0,19341.0,0.8846951]
[1664622175973,0.98407212,19342.0,19341.0,1.05403201]
[1664622176120,0.387769,19342.0,19341.0,1.00403201]
[1664622176368,0.465769,19342.0,19341.0,1.00403201]
[1664622176624,0.465769,19342.0,19341.0,0.64583701]
[1664622177484,0.387746,19343.0,19341.0,1.45622633]
[1664622177714,0.646121,19344.0,19342.0,0.69542038]
[1664622177952,0.516964,19344.0,19343.0,0.51173144]
[1664622178161,0.85694753,19344.0,19343.0,0.51173144]
[1664622178383,0.045,19344.0,19343.0,0.51173144]
[1664622178816,0.949681,19344.0,19343.0,0.51173144]
[1664622179551,0.904681,19344.0,19343.0,0.51173144]
[1664622179980,0.904681,19344.0,19343.0,0.5265001]
[1664622180369,0.947681,19344.0,19343.0,0.5265001]
[1664622181067,0.430717,19344.0,19343.0,0.5265001]
[1664622181740,0.387717,19344.0,19343.0,0.5265001]
[1664622182431,0.430717,19344.0,19343.0,0.5265001]
[1664622183734,0.387717,19344.0,19343.0,0.5265001]
[1664622184388,0.430717,19344.0,19343.0,0.5265001]
[1664622185609,0.904673,19344.0,19343.0,0.5265001]
[1664622186471,0.951673,19344.0,19343.0,0.5265001]
[1664622187144,1.251673,19344.0,19343.0,0.5265001]
[1664622187795,1.204673,19344.0,19343.0,0.5265001]
[1664622188052,0.904673,19344.0,19343.0,0.5265001]
[1664622188502,0.951673,19344.0,19343.0,0.5265001]
[1664622189159,1.251673,19344.0,19343.0,0.5265001]
[1664622189419,0.951673,19344.0,19343.0,0.5265001]
[1664622189628,1.204673,19344.0,19343.0,0.5265001]
[1664622190493,1.251673,19344.0,19343.0,0.5265001]
[1664622191671,1.204673,19344.0,19343.0,0.5265001]
[1664622192478,1.251673,19344.0,19343.0,0.5265001]
[1664622193782,1.204673,19344.0,19343.0,0.5265001]
[1664622194493,1.251673,19344.0,19343.0,0.5265001]
[1664622195863,1.204673,19344.0,19343.0,0.5265001]
[1664622196523,1.251673,19344.0,19343.0,0.5265001]
[1664622197681,1.204673,19344.0,19343.0,0.5265001]
[1664622198592,1.251673,19344.0,19343.0,0.5265001]
[1664622199741,1.204673,19344.0,19343.0,0.5265001]
[1664622199975,1.204673,19344.0,19343.0,0.01476866]
[1664622200650,1.251673,19344.0,19343.0,0.01476866]
[1664622200863,1.251673,19344.0,19343.0,0.01466847]
[1664622202033,0.951673,19344.0,19343.0,0.01466847]
[1664622202208,0.904673,19344.0,19343.0,0.01466847]
[1664622202416,0.951673,19344.0,19343.0,0.01466847]
[1664622203270,0.951673,19344.0,19343.0,0.06601847]
[1664622203643,0.904673,19344.0,19343.0,0.06601847]
[1664622204532,0.947673,19344.0,19343.0,0.06601847]
[1664622205017,0.947673,19344.0,19343.0,0.01466847]
[1664622206123,0.904673,19344.0,19343.0,0.01466847]
[1664622206348,0.904673,19344.0,19343.0,0.06466847]
[1664622206565,0.430717,19344.0,19343.0,0.01466847]
[1664622206780,0.430717,19344.0,19343.0,0.06949247]
[1664622206997,0.430717,19344.0,19343.0,0.01949247]
[1664622207874,0.387717,19344.0,19343.0,0.01949247]
[1664622208564,0.430717,19344.0,19343.0,0.01949247]
[1664622209902,0.904673,19344.0,19343.0,0.01949247]
[1664622210578,0.947673,19344.0,19343.0,0.01949247]
[1664622211781,0.904673,19344.0,19343.0,0.01949247]
[1664622212491,0.947673,19344.0,19343.0,0.01949247]
[1664622213877,0.904673,19344.0,19343.0,0.01949247]
[1664622214543,0.947673,19344.0,19343.0,0.01949247]
[1664622215671,1.1070508,19344.0,19343.0,0.01949247]
[1664622215927,1.3640508,19344.0,19343.0,0.01949247]
[1664622216602,1.4110508,19344.0,19343.0,0.01949247]
[1664622217784,1.3640508,19344.0,19343.0,0.01949247]
[1664622218677,1.4110508,19344.0,19343.0,0.01949247]
[1664622219790,1.3640508,19344.0,19343.0,0.01949247]
[1664622220584,1.4110508,19344.0,19343.0,0.01949247]
[1664622221223,1.251673,19344.0,19343.0,0.01949247]
[1664622222335,1.204673,19344.0,19343.0,0.01949247]
[1664622222575,1.251673,19344.0,19343.0,0.01949247]
[1664622223848,0.904673,19344.0,19343.0,0.01949247]
[1664622224717,1.251673,19344.0,19343.0,0.01949247]
[1664622226019,1.204673,19344.0,19343.0,0.01949247]
[1664622226712,1.251673,19344.0,19343.0,0.01949247]
[1664622227798,1.204673,19344.0,19343.0,0.01949247]
[1664622228647,0.951673,19344.0,19343.0,0.01949247]
[1664622229079,1.251673,19344.0,19343.0,0.01949247]
[1664622229293,0.951673,19344.0,19343.0,0.01949247]
[1664622229518,1.251673,19344.0,19343.0,0.01949247]
[1664622231934,1.204673,19344.0,19343.0,0.01949247]
[1664622232610,1.251673,19344.0,19343.0,0.01949247]
[1664622233981,1.204673,19344.0,19343.0,0.01949247]
[1664622234651,1.251673,19344.0,19343.0,0.01949247]
[1664622235964,0.904673,19344.0,19343.0,0.01949247]
[1664622236446,0.904673,19344.0,19343.0,0.07084247]
[1664622236671,0.947673,19344.0,19343.0,0.07084247]
[1664622237828,0.904673,19344.0,19343.0,0.07084247]
[1664622238651,0.945673,19344.0,19343.0,0.01949247]
[1664622239827,0.904673,19344.0,19343.0,0.01949247]
[1664622240753,0.947673,19344.0,19343.0,0.01949247]
[1664622241868,0.904673,19344.0,19343.0,0.01949247]
[1664622242758,0.947673,19344.0,19343.0,0.01949247]
[1664622243405,0.947673,19344.0,19343.0,0.07084247]
[1664622243618,0.430717,19344.0,19343.0,0.07084247]
[1664622244086,0.387717,19344.0,19343.0,0.07084247]
[1664622244739,0.430717,19344.0,19343.0,0.07084247]
[1664622245655,0.430717,19344.0,19343.0,0.01949247]
[1664622246121,0.387717,19344.0,19343.0,0.01949247]
[1664622246826,0.430717,19344.0,19343.0,0.01949247]
[1664622247988,0.387717,19344.0,19343.0,0.01949247]
[1664622248901,0.430717,19344.0,19343.0,0.01949247]
[1664622250109,0.387717,19344.0,19343.0,0.01949247]
[1664622250752,0.430717,19344.0,19343.0,0.01949247]
[1664622251102,1.1070501,19344.0,19343.0,0.01949247]
[1664622251316,1.247673,19344.0,19343.0,0.01949247]
[1664622252016,1.204673,19344.0,19343.0,0.01949247]
[1664622252287,0.904673,19344.0,19343.0,0.01949247]
[1664622252727,0.951673,19344.0,19343.0,0.01949247]
[1664622254241,0.904673,19344.0,19343.0,0.01949247]
[1664622254657,0.951673,19344.0,19343.0,0.01949247]
[1664622256509,0.904673,19344.0,19343.0,0.01949247]
[1664622256729,0.951673,19344.0,19343.0,0.01949247]
[1664622258075,0.904673,19344.0,19343.0,0.01949247]
[1664622258776,0.951673,19344.0,19343.0,0.01949247]
[1664622259436,0.951673,19344.0,19343.0,0.07084247]
[1664622259889,0.904673,19344.0,19343.0,0.07084247]
[1664622260107,0.904673,19344.0,19343.0,0.01949247]
[1664622260773,0.951673,19344.0,19343.0,0.01949247]
[1664622262039,0.904673,19344.0,19343.0,0.01949247]
[1664622262494,0.904673,19344.0,19343.0,0.06949247]
[1664622262667,0.951673,19344.0,19343.0,0.01949247]
[1664622263947,0.904673,19344.0,19343.0,0.01949247]
[1664622264809,0.947673,19344.0,19343.0,0.01949247]
[1664622266019,0.904673,19344.0,19343.0,0.01949247]
[1664622266733,0.951673,19344.0,19343.0,0.01949247]
[1664622268220,0.904673,19344.0,19343.0,0.01949247]
[1664622268899,0.947673,19344.0,19343.0,0.01949247]
[1664622269586,0.947673,19344.0,19343.0,0.25483933]
[1664622269810,0.430717,19344.0,19343.0,1.0543959]
[1664622270027,0.387717,19344.0,19343.0,1.4125909]
[1664622270245,0.387717,19344.0,19343.0,1.0543959]
[1664622270468,0.18763027,19346.0,19343.0,1.4625909]
[1664622270747,0.83368227,19346.0,19344.0,0.56173144]
[1664622270965,0.387708,19345.0,19344.0,0.65366875]
[1664622271191,0.387708,19345.0,19344.0,0.51173144]
[1664622272737,0.435708,19345.0,19344.0,0.51173144]
[1664622274052,0.904637,19345.0,19344.0,0.51173144]
[1664622274768,0.952637,19345.0,19344.0,0.51173144]
[1664622274990,1.13126893,19345.0,19344.0,0.51173144]
[1664622275203,1.43126893,19345.0,19344.0,0.51173144]
[1664622275547,1.13126893,19345.0,19344.0,0.51173144]
[1664622275986,1.38326893,19345.0,19344.0,0.51173144]
[1664622276412,1.204637,19345.0,19344.0,0.50173144]
[1664622276906,1.257637,19345.0,19344.0,0.50173144]
[1664622278016,1.204637,19345.0,19344.0,0.50173144]
[1664622278808,1.257637,19345.0,19344.0,0.50173144]
[1664622280096,1.204637,19345.0,19344.0,0.50173144]
[1664622280842,1.252637,19345.0,19344.0,0.50173144]
[1664622281765,0.952637,19345.0,19344.0,0.50173144]
[1664622281957,1.252637,19345.0,19344.0,0.50173144]
[1664622282167,0.904637,19345.0,19344.0,0.50173144]
[1664622282743,0.952637,19345.0,19344.0,0.50173144]
[1664622283197,1.252637,19345.0,19344.0,0.50173144]
[1664622283423,0.952637,19345.0,19344.0,0.49673144]
[1664622284037,0.904637,19345.0,19344.0,0.49673144]
[1664622284424,1.204637,19345.0,19344.0,0.49673144]
[1664622284662,0.904637,19345.0,19344.0,0.49673144]
[1664622284871,0.957637,19345.0,19344.0,0.49673144]
[1664622286110,0.904637,19345.0,19344.0,0.49673144]
[1664622286968,0.952637,19345.0,19344.0,0.49673144]
[1664622288112,0.904637,19345.0,19344.0,0.49673144]
[1664622288972,0.949637,19345.0,19344.0,0.49673144]
[1664622290034,0.904637,19345.0,19344.0,0.49673144]
[1664622290978,0.949637,19345.0,19344.0,0.49673144]
[1664622292353,0.904637,19345.0,19344.0,0.49673144]
[1664622292985,0.952637,19345.0,19344.0,0.49673144]
[1664622294167,0.904637,19345.0,19344.0,0.49673144]
[1664622295013,0.952637,19345.0,19344.0,0.49673144]
[1664622296150,0.904637,19345.0,19344.0,0.49673144]
[1664622297038,0.952637,19345.0,19344.0,0.49673144]
[1664622298157,0.904637,19345.0,19344.0,0.49673144]
[1664622299063,0.952637,19345.0,19344.0,0.49673144]
[1664622300198,0.904637,19345.0,19344.0,0.49673144]
[1664622300960,0.952637,19345.0,19344.0,0.49673144]
[1664622301620,1.252637,19345.0,19344.0,0.49673144]
[1664622302319,1.204637,19345.0,19344.0,0.49673144]
[1664622302977,1.252637,19345.0,19344.0,0.49673144]
[1664622303630,0.952637,19345.0,19344.0,0.49673144]
[1664622304057,1.252637,19345.0,19344.0,0.49673144]
[1664622304267,0.904637,19345.0,19344.0,0.49673144]
[1664622304486,1.204637,19345.0,19344.0,0.49673144]
[1664622304917,1.252637,19345.0,19344.0,0.49673144]
[1664622305337,0.952637,19345.0,19344.0,0.49673144]
[1664622306360,0.904637,19345.0,19344.0,0.49673144]
[1664622306920,0.952637,19345.0,19344.0,0.49673144]
[1664622308169,0.904637,19345.0,19344.0,0.49673144]
[1664622309036,0.952637,19345.0,19344.0,0.49673144]
[1664622309435,1.02959214,19345.0,19344.0,0.49673144]
[1664622310255,0.98159214,19345.0,19344.0,0.49673144]
[1664622311027,1.02959214,19345.0,19344.0,0.49673144]
[1664622312258,0.98159214,19345.0,19344.0,0.49673144]
[1664622313042,1.03459214,19345.0,19344.0,0.49673144]
[1664622314257,0.98159214,19345.0,19344.0,0.49673144]
[1664622314926,1.03459214,19345.0,19344.0,0.49673144]
[1664622316054,1.33459214,19345.0,19344.0,0.49673144]
[1664622316299,1.28159214,19345.0,19344.0,0.49673144]
[1664622316915,1.03459214,19345.0,19344.0,0.49673144]
[1664622318788,0.98159214,19345.0,19344.0,0.49673144]
[1664622319033,1.02959214,19345.0,19344.0,0.49673144]
[1664622320146,0.98159214,19345.0,19344.0,0.49673144]
[1664622321064,1.02959214,19345.0,19344.0,0.49673144]
[1664622322106,1.02959214,19345.0,19344.0,0.4965726]
[1664622322334,0.98159214,19345.0,19344.0,0.4965726]
[1664622322924,1.02959214,19345.0,19344.0,0.4965726]
[1664622324472,0.98159214,19345.0,19344.0,0.4965726]
[1664622324913,1.02959214,19345.0,19344.0,0.4965726]
[1664622326283,0.98159214,19345.0,19344.0,0.4965726]
[1664622327052,1.02959214,19345.0,19344.0,0.4965726]
[1664622328360,0.98159214,19345.0,19344.0,0.4965726]
[1664622329051,1.02959214,19345.0,19344.0,0.4965726]
[1664622329781,0.51266314,19345.0,19344.0,0.8547676]
[1664622330032,0.51266314,19345.0,19344.0,0.9561176]
[1664622330248,0.646002,19348.0,19345.0,1.4]
[1664622330476,0.387641,19348.0,19347.0,0.10135]
[1664622330696,0.387641,19348.0,19347.0,1.57283187]
[1664622330913,0.516822,19349.0,19347.0,1.41799254]
[1664622330914,0.387624,19349.0,19347.0,1.41799254]
[1664622331139,0.516821,19350.0,19348.0,0.8562611]
[1664622331353,0.129208,19349.0,19348.0,0.65290543]
[1664622331588,0.129208,19349.0,19348.0,0.8062611]
[1664622331589,0.387623,19349.0,19348.0,0.8062611]
[1664622332676,0.387623,19349.0,19348.0,0.9355441]
[1664622332899,1.033537,19350.0,19348.0,0.5259991]
[1664622333140,1.033537,19350.0,19349.0,0.05]
[1664622335204,1.033537,19350.0,19349.0,0.127]
[1664622335873,1.333537,19350.0,19349.0,0.077]
[1664622336241,1.333537,19350.0,19348.0,0.129283]
[1664622337171,1.333537,19350.0,19348.0,0.207283]
[1664622337641,1.333537,19350.0,19349.0,0.05]
[1664622338511,1.333537,19350.0,19348.0,0.129283]
[1664622338726,1.333537,19350.0,19349.0,0.05]
[1664622338966,1.333537,19350.0,19348.0,0.129283]
[1664622339122,1.333537,19350.0,19348.0,0.207283]
[1664622339365,0.3,19349.0,19348.0,0.207283]
[1664622340275,0.3,19349.0,19348.0,0.129283]
[1664622340642,0.45636113,19349.0,19348.0,0.129283]
[1664622341074,0.45636113,19349.0,19348.0,0.207283]
[1664622342346,0.45636113,19349.0,19348.0,0.129283]
[1664622343081,0.45636113,19349.0,19348.0,0.189283]
[1664622344283,0.45636113,19349.0,19348.0,0.129283]
[1664622345195,0.45636113,19349.0,19348.0,0.189283]
[1664622345667,0.3,19349.0,19348.0,0.189283]
[1664622346344,0.3,19349.0,19348.0,0.129283]
[1664622346588,1.78040729,19350.0,19348.0,0.129283]
[1664622346817,0.3,19349.0,19348.0,0.129283]
[1664622347009,0.37619252,19349.0,19348.0,0.129283]
[1664622347222,0.37619252,19349.0,19348.0,0.207283]
[1664622347433,0.3,19349.0,19348.0,0.207283]
[1664622347817,0.50804073,19349.0,19348.0,0.207283]
[1664622348290,0.50804073,19349.0,19348.0,0.129283]
[1664622349142,0.50804073,19349.0,19348.0,0.184283]
[1664622349588,1.78040729,19350.0,19348.0,0.184283]
[1664622350358,1.78040729,19350.0,19348.0,0.129283]
[1664622351132,0.3,19349.0,19348.0,0.207283]
[1664622352484,0.3,19349.0,19348.0,0.129283]
[1664622353047,0.3,19349.0,19348.0,0.207283]
[1664622354422,0.3,19349.0,19348.0,0.129283]
[1664622355395,0.3,19349.0,19348.0,0.207283]
[1664622356590,0.3,19349.0,19348.0,0.129283]
[1664622357248,0.3,19349.0,19348.0,0.207283]
[1664622358467,0.3,19349.0,19348.0,0.129283]
[1664622359132,0.3,19349.0,19348.0,0.207283]
[1664622360387,0.3,19349.0,19348.0,0.129283]
[1664622361149,0.3,19349.0,19348.0,0.207283]
[1664622362431,0.3,19349.0,19348.0,0.129283]
[1664622363077,1.78040729,19350.0,19348.0,0.60391693]
[1664622363305,1.78040729,19350.0,19349.0,0.05]
[1664622363538,2.08040729,19350.0,19349.0,0.05]
[1664622365320,2.08040729,19350.0,19349.0,0.126]
[1664622366440,2.08040729,19350.0,19349.0,0.05]
[1664622367222,2.08040729,19350.0,19349.0,0.124]
[1664622367827,2.08040729,19350.0,19349.0,0.074]
[1664622368472,2.08040729,19350.0,19348.0,0.12920083]
[1664622369219,2.08040729,19350.0,19348.0,0.20720083]
[1664622369856,2.08040729,19350.0,19349.0,0.05]
[1664622371150,2.08040729,19350.0,19349.0,0.068]
[1664622371817,2.08040729,19350.0,19349.0,0.018]
[1664622372715,2.08040729,19350.0,19348.0,0.12920083]
[1664622373490,2.08040729,19350.0,19349.0,0.018]
[1664622374449,2.08040729,19350.0,19348.0,0.12920083]
[1664622374701,0.3,19349.0,19348.0,0.12920083]
[1664622375338,1.78040729,19350.0,19348.0,0.20720083]
[1664622375516,1.78040729,19350.0,19349.0,0.05]
[1664622375672,2.08040729,19350.0,19349.0,0.05]
[1664622375901,2.08040729,19350.0,19348.0,0.20720083]
[1664622376546,2.08040729,19350.0,19349.0,0.05]
[1664622376975,2.08040729,19350.0,19348.0,0.12920083]
[1664622377283,2.08040729,19350.0,19349.0,0.018]
[1664622378508,2.08040729,19350.0,19348.0,0.12920083]
[1664622378875,0.3,19349.0,19348.0,0.12920083]
[1664622379233,0.3,19349.0,19348.0,0.20620083]
[1664622380845,0.3,19349.0,19348.0,0.12920083]
[1664622381195,0.3,19349.0,19348.0,0.20620083]
[1664622382159,1.78040729,19350.0,19349.0,0.05]
[1664622382374,2.08040729,19350.0,19349.0,0.05]
[1664622382787,2.08040729,19350.0,19348.0,0.12920083]
[1664622383369,2.08040729,19350.0,19349.0,0.018]
[1664622384590,2.08040729,19350.0,19348.0,0.12920083]
[1664622385238,2.08040729,19350.0,19349.0,0.05]
[1664622387277,2.14540729,19350.0,19349.0,0.05]
[1664622387684,2.14540729,19350.0,19348.0,0.12920083]
[1664622387897,2.14540729,19350.0,19348.0,0.52591693]
[1664622388112,2.14540729,19350.0,19348.0,0.12920083]
[1664622388658,2.08040729,19350.0,19348.0,0.12920083]
[1664622389299,2.08040729,19350.0,19348.0,0.20520083]
[1664622389520,2.08040729,19350.0,19349.0,0.05]
[1664622390186,2.08040729,19350.0,19348.0,0.20520083]
[1664622390406,2.08040729,19350.0,19348.0,0.60191693]
[1664622390674,2.08040729,19350.0,19348.0,0.12920083]
[1664622391142,1.13438629,19350.0,19348.0,0.12920083]
[1664622391367,1.13438629,19350.0,19348.0,0.20520083]
[1664622392143,1.78040729,19350.0,19348.0,0.20520083]
[1664622392542,1.78040729,19350.0,19348.0,0.12920083]
[1664622393324,1.78040729,19350.0,19348.0,0.20520083]
[1664622394293,1.78040729,19350.0,19349.0,0.05]
[1664622394531,1.033537,19350.0,19349.0,0.05]
[1664622394750,1.033537,19350.0,19348.0,0.12920083]
[1664622395015,1.033537,19350.0,19349.0,0.05]
[1664622395211,0.129115,19350.0,19349.0,0.05]
[1664622395551,1.033537,19350.0,19349.0,0.05]
[1664622395975,1.550358,19350.0,19348.0,0.20520083]
[1664622396223,1.550358,19350.0,19348.0,0.60191693]
[1664622396418,1.550358,19350.0,19349.0,0.05]
[1664622397389,1.615358,19350.0,19349.0,0.05]
[1664622398234,1.915358,19350.0,19348.0,0.12920083]
[1664622398426,1.615358,19350.0,19348.0,0.12920083]
[1664622398637,1.550358,19350.0,19348.0,0.12920083]
[1664622399285,1.550358,19350.0,19348.0,0.20520083]
[1664622399474,1.550358,19350.0,19349.0,0.05]
[1664622399873,1.850358,19350.0,19348.0,0.20520083]
[1664622400121,1.550358,19350.0,19348.0,0.20520083]
[1664622400538,1.550358,19350.0,19348.0,0.12920083]
[1664622401136,1.550358,19350.0,19349.0,0.05]
[1664622401478,1.850358,19350.0,19349.0,0.05]
[1664622402933,1.850358,19350.0,19348.0,0.12920083]
[1664622403348,1.850358,19350.0,19348.0,0.52591693]
[1664622403349,1.915358,19350.0,19348.0,0.52591693]
[1664622403547,1.915358,19350.0,19348.0,0.12920083]
[1664622404162,1.915358,19350.0,19349.0,0.05]
[1664622404787,1.850358,19350.0,19349.0,0.05]
[1664622405431,1.915358,19350.0,19349.0,0.05]
[1664622405807,1.615358,19350.0,19349.0,0.05]
[1664622406275,1.915358,19350.0,19348.0,0.52591693]
[1664622406489,1.615358,19350.0,19349.0,0.3967161]
[1664622406746,1.550358,19350.0,19348.0,0.64093227]
[1664622406925,1.550358,19350.0,19348.0,1.03764837]
[1664622407361,1.550358,19350.0,19348.0,1.11364837]
[1664622407925,1.550358,19350.0,19348.0,0.71693227]
[1664622408356,1.550358,19350.0,19348.0,1.11364837]
[1664622408495,1.550358,19350.0,19348.0,0.71693227]
[1664622408704,1.550358,19350.0,19348.0,0.64093227]
[1664622408924,1.550358,19350.0,19348.0,1.03764837]
[1664622409134,1.550358,19350.0,19348.0,0.64093227]
[1664622409353,1.550358,19350.0,19348.0,0.71693227]
[1664622410252,1.550358,19350.0,19348.0,1.11364837]
[1664622410462,1.550358,19350.0,19348.0,0.71693227]
[1664622410802,1.550358,19350.0,19348.0,0.64093227]
[1664622411389,1.550358,19350.0,19348.0,0.71693227]
[1664622412946,1.550358,19350.0,19348.0,0.64093227]
[1664622413363,1.550358,19350.0,19348.0,0.71693227]
[1664622414675,1.550358,19350.0,19348.0,0.64093227]
[1664622415604,1.550358,19350.0,19348.0,0.71693227]
[1664622416011,0.904312,19350.0,19348.0,0.71693227]
[1664622416440,0.904312,19350.0,19349.0,0.05]
[1664622416627,1.033537,19350.0,19349.0,0.05]
[1664622416984,1.033537,19350.0,19348.0,0.64093227]
[1664622417227,0.387516,19350.0,19349.0,0.05]
[1664622417441,0.494115,19350.0,19349.0,0.05]
[1664622418110,0.194115,19350.0,19349.0,0.05]
[1664622418316,0.494115,19350.0,19348.0,0.64093227]
[1664622418468,1.269312,19350.0,19348.0,0.64093227]
[1664622418647,1.204312,19350.0,19348.0,0.64093227]
[1664622419425,1.204312,19350.0,19348.0,0.71693227]
[1664622420165,1.850333,19350.0,19348.0,0.71693227]
[1664622420444,1.550333,19350.0,19349.0,0.05]
[1664622420660,1.550333,19350.0,19348.0,1.03764837]
[1664622421103,1.033512,19350.0,19348.0,1.03764837]
[1664622421318,1.033512,19350.0,19348.0,1.01264837]
[1664622421532,1.033512,19350.0,19348.0,1.08864837]
[1664622421755,1.033512,19350.0,19348.0,0.69193227]
[1664622421958,1.550333,19350.0,19348.0,1.08864837]
[1664622422720,1.550333,19350.0,19348.0,0.61593227]
[1664622423029,1.550333,19350.0,19348.0,1.01264837]
[1664622423281,1.550333,19350.0,19349.0,0.05]
[1664622424920,1.033512,19350.0,19349.0,0.4467161]
[1664622425116,1.033512,19350.0,19349.0,0.1]
[1664622425341,0.775222,19350.0,19349.0,0.05]
[1664622425559,0.792222,19350.0,19349.0,0.126]
[1664622426108,0.017,19350.0,19349.0,0.70450924]
[1664622426321,0.017,19350.0,19349.0,1.06270424]
[1664622426693,0.645879,19351.0,19349.0,0.62850924]
[1664622426847,0.258401,19350.0,19349.0,0.49034714]
[1664622427077,0.129106,19351.0,19349.0,1.99732255]
[1664622427303,0.516689,19351.0,19350.0,0.59474794]
[1664622427546,0.516689,19351.0,19350.0,0.23655294]
[1664622427991,0.387583,19351.0,19350.0,0.23655294]
[1664622428205,0.387583,19351.0,19350.0,0.74828438]
[1664622428496,0.129196,19351.0,19350.0,1.14500048]
[1664622428949,0.129196,19351.0,19350.0,0.74828438]
[1664622429193,0.129196,19351.0,19350.0,1.24500048]
[1664622429464,1.033415,19352.0,19350.0,1.32100048]
[1664622429683,0.129101,19352.0,19351.0,0.05]